Cogmind - Beta 13 @@@ ROGUE MODE // 2024.06.02 @ 22:30:09 Player: Sionnis Result: Self-destructed Performance ------------- Evolutions (2) 1000 Regions Visited (4) 800 Robots Destroyed (46) 230 Value Destroyed (1009) 1009 Prototype IDs (0) 0 Alien Tech Used (0) 0 Bonus (25) 25 TOTAL SCORE: 3064 Bonus ------- High Alert Combat Kills 2 Follower Combat Kills 34 Friendly Fire -11 Cogmind --------- Core Integrity 550/550 Matter 300/300 Energy 250/250 System Corruption 0% Temperature Cool (0) Movement Rolling (105) Ox1 Location -8/Materials Parts ------- > --- POWER (1) -------- Ion Engine > --- PROPULSION (3) --- Armored Wheel Armored Wheel > --- UTILITY (4) ------ Large Storage Unit Targeting Computer Medium Armor Plating > --- WEAPON (3) ------- Spread Laser Shotgun Flak Gun > --- INVENTORY (15) --- Light Ion Engine Wheel Wheel Armored Wheel Armored Wheel Armored Wheel Armored Wheel Medium Armor Plating Medium Armor Plating Spread Laser Shotgun Shotgun Shotgun Heavy Missile Launcher Spear Peak State ------------ > --- POWER ------------ Ion Engine > --- PROPULSION ------- Armored Wheel Armored Wheel > --- UTILITY ---------- Large Storage Unit Targeting Computer Medium Armor Plating > --- WEAPON ----------- Spread Laser Shotgun Flak Gun > --- INVENTORY -------- Light Ion Engine Wheel Wheel Armored Wheel Armored Wheel Armored Wheel Armored Wheel Medium Armor Plating Medium Armor Plating Spread Laser Shotgun Shotgun Shotgun Heavy Missile Launcher Spear [Rating: 20] Favorites ----------- Power Ion Engine Engine Ion Engine Propulsion Armored Wheel Wheel Armored Wheel Utility Targeting Computer Storage Large Storage Unit Processor Targeting Computer Protection Medium Armor Plating Weapon Shotgun Energy Gun Spread Laser Ballistic Gun Shotgun Build | -11 -10 -9 -9 -8 ------- Run | Yrd Mat Mat Min Mat Slots Evolved 4 | . . 2 . 2 Power . | . . . . . Propulsion 1 | . . . . 1 Utility 2 | . . 1 . 1 Weapon 1 | . . 1 . . Parts Attached 26 | 3 5 15 3 . Power 4 | 1 . 2 1 . Engine 4 | 1 . 2 1 . Core . | . . . . . Reactor . | . . . . . Propulsion 7 | 2 . 5 . . Treads . | . . . . . Leg . | . . . . . Wheel 7 | 2 . 5 . . Hover . | . . . . . Flight . | . . . . . Utility 7 | . 2 4 1 . Device . | . . . . . Storage 1 | . 1 . . . Processor 2 | . 1 1 . . Hackware . | . . . . . Protection 4 | . . 3 1 . Artifact . | . . . . . Weapon 8 | . 3 4 1 . Energy Gun 2 | . . 2 . . Energy Cannon . | . . . . . Ballistic Gun 6 | . 3 2 1 . Ballistic Cannon . | . . . . . Launcher . | . . . . . Special Weapon . | . . . . . Impact Weapon . | . . . . . Slashing Weapon . | . . . . . Piercing Weapon . | . . . . . Special Melee Weapon . | . . . . . Unidentified Prototypes . | . . . . . Parts Lost 8 | . . 7 1 . Power 2 | . . 2 . . Propulsion 2 | . . 2 . . Utility 1 | . . . 1 . Weapon 3 | . . 3 . . Highest Loss Streak 2 | . . 2 1 . To Critical Strikes . | . . . . . Average Slot Usage (%) 96 | . 94 90 99 . Engine 10 | . 14 6 11 . Wheel 22 | . 28 21 22 . Storage 11 | . 13 11 11 . Processor 12 | . 11 15 11 . Protection 7 | . . 5 10 . Energy Gun 8 | . . 10 11 . Ballistic Gun 22 | . 26 19 22 . Naked Turns . | . . . . . Heaviest Build 42 | 3 29 36 42 . Greatest Support 26 | 20 20 26 24 . Greatest Overweight (x) 2 | . 1 2 1 . Average Overweight (x) . | . . 1 1 . Largest Inventory Capacity 15 | 5 15 15 15 . Average Capacity 14 | 5 14 15 15 . Most Carried 15 | . 11 15 15 . Average Carried 12 | . 7 13 14 . Final Capacity 15 | 5 15 15 15 15 Final Carried 15 | . 11 14 15 15 Class Distribution -------------------- 75% | Gunner 24% | Mutant Dominant Class ---------------- Mutant | -10/Materials Gunner | -9/Materials Gunner | -9/Mines Gunner | -8/Materials Resources | -11 -10 -9 -9 -8 ----------- Run | Yrd Mat Mat Min Mat Matter Collected 1061 | 134 321 469 137 . Remotely . | . . . . . Salvage Created 1307 | . 321 748 238 . Parts 84 | . 16 41 27 . Haulers Intercepted 1 | . . 1 . . Recyclers Shooed 1 | . . 1 . . Parts Field Recycled . | . . . . . Retrieved Matter . | . . . . . Parts Self-Destructed . | . . . . . Prevented . | . . . . . Kills | -11 -10 -9 -9 -8 ------- Run | Yrd Mat Mat Min Mat Combat Hostiles Destroyed 36 | . 8 16 12 . Guns 36 | . 8 16 12 . Classes Destroyed 8 | . 4 4 . . Hauler 1 | . . 1 . . Recycler 6 | . 2 3 1 . Operator 1 | . . 1 . . Watcher 2 | . 1 1 . . Swarmer 16 | . 3 4 9 . Grunt 15 | . 5 7 3 . Duelist 1 | . . 1 . . Sentry 4 | . . 4 . . Best Kill Streak 7 | . 5 7 4 . Combat Bots Only 4 | . 3 4 4 . Max Kills in Single Turn 3 | . 1 3 2 . Gunslinging 2 | . . 2 1 . Exploded . | . . . . . Melee . | . . . . . Uniques/NPCs Destroyed . | . . . . . Combat | -11 -10 -9 -9 -8 -------- Run | Yrd Mat Mat Min Mat Hostile Shots Fired 121 | . 37 61 23 . Missed 24 | . 11 12 1 . Damage Taken 1150 | . 260 666 224 . Core 169 | . 20 119 30 . Absorbed by Shields . | . . . . . Regen/Repaired (Parts) 39 | . . 39 . . Core Remaining (%) 84 | 100 92 . 62 . Volleys Fired 88 | . 32 42 14 . Largest 3 | . 2 3 3 . Hottest 111 | . 46 111 111 . Shots Fired 212 | . 64 106 42 . Gun 212 | . 64 106 42 . Cannon . | . . . . . Launcher . | . . . . . Special . | . . . . . Kinetic 159 | . 64 67 28 . Thermal 53 | . . 39 14 . Explosive . | . . . . . Electromagnetic . | . . . . . Robot Hit Streak 21 | . 10 21 8 . Robot Miss Streak 12 | . 8 8 12 . Penetration Max . | . . . . . Secondary Targets 7 | . 2 3 2 . Max Gunslinging Chain 2 | . 1 2 1 . Shots Hit Robots 159 | . 46 81 32 . Core Hits 117 | . 21 65 31 . Critical Kills . | . . . . . Critical Parts Destroyed . | . . . . . Critical Strikes . | . . . . . Melee Attacks . | . . . . . Impact . | . . . . . Slashing . | . . . . . Piercing . | . . . . . Sneak Attacks . | . . . . . Combat Hostiles . | . . . . . Follow-up Attacks . | . . . . . Damage Inflicted 2383 | . 668 1248 467 . Guns 2383 | . 668 1248 467 . Cannons . | . . . . . Explosions . | . . . . . Melee . | . . . . . Ramming . | . . . . . Kinetic 1650 | . 668 717 265 . Thermal 733 | . . 531 202 . Explosive . | . . . . . Electromagnetic . | . . . . . Impact . | . . . . . Slashing . | . . . . . Piercing . | . . . . . Highest Corruption . | . . . . . Average Corruption . | . . . . . Corruption Purged . | . . . . . Corruption Blocked . | . . . . . Overload Shots . | . . . . . Overflow Damage . | . . . . . Projectiles . | . . . . . Explosions . | . . . . . Melee . | . . . . . Knockbacks . | . . . . . Impact . | . . . . . Kinetic . | . . . . . Secondary . | . . . . . Self-Inflicted Damage . | . . . . . Shots . | . . . . . Rammed . | . . . . . Targets Rammed . | . . . . . Kicked . | . . . . . Crushed . | . . . . . Highest Temperature 238 | . 16 238 227 . Average Temperature 74 | . 4 77 78 . Received Heat Transfer 372 | . 90 198 84 . Effects 2 | . . 2 . . Interference 2 | . . 2 . . Siege Activations . | . . . . . Robots Corrupted . | . . . . . Combat Hostiles . | . . . . . Parts Fried . | . . . . . Impact Corruptions . | . . . . . Robots Melted . | . . . . . Combat Hostiles . | . . . . . Parts Melted . | . . . . . Heat Transferred 900 | . . 645 255 . Parts Sabotaged . | . . . . . Parts Stolen . | . . . . . Parts Stripped . | . . . . . Power Chain Reactions . | . . . . . Alert | -11 -10 -9 -9 -8 ------- Run | Yrd Mat Mat Min Mat Peak Influence 440 | . 300 440 384 . Initial 147 | . . 42 147 . Average 196 | . 137 263 185 . Maximum Alert Level 2 | . 1 2 1 . Low Security (%) 56 | 100 70 20 69 . Level 1 41 | . 29 72 30 . Level 2 1 | . . 7 . . Level 3 . | . . . . . Level 4 . | . . . . . Level 5 . | . . . . . High Security . | . . . . . Max Security . | . . . . . Squads Dispatched 6 | . 3 2 1 . Investigation 2 | . 1 . 1 . Extermination . | . . . . . Reinforcement 4 | . 2 2 . . Assault . | . . . . . Garrison . | . . . . . Intercept . | . . . . . Searches Triggered . | . . . . . Construction Impeded . | . . . . . Haulers Reinforced . | . . . . . Active Scanning Responses . | . . . . . Cargo Convoy Interrupts . | . . . . . Stealth | -11 -10 -9 -9 -8 --------- Run | Yrd Mat Mat Min Mat Distress Signals 4 | . 3 1 . . Communications Jammed . | . . . . . Distress Signals . | . . . . . Times Spotted 52 | . 14 24 14 . Peak Tracking Total 5 | . 4 5 4 . Tactical Retreats 3 | . 1 2 . . Traps | -11 -10 -9 -9 -8 ------- Run | Yrd Mat Mat Min Mat Traps Triggered . | . . . . . Indirectly . | . . . . . Trap Hack Attempts . | . . . . . Triggered . | . . . . . Disarmed . | . . . . . Reprogrammed . | . . . . . Reused . | . . . . . Traps Extracted . | . . . . . Installed . | . . . . . Triggered . | . . . . . Machines | -11 -10 -9 -9 -8 ---------- Run | Yrd Mat Mat Min Mat Machines Disabled . | . . . . . Max in Single Turn . | . . . . . Machines Repaired . | . . . . . Machines Dismantled . | . . . . . Machines Sabotaged . | . . . . . Overloaded Fab Kills . | . . . . . Hacking | -11 -10 -9 -9 -8 --------- Run | Yrd Mat Mat Min Mat Machines Accessed 7 | . 3 2 2 . Terminals 3 | . 2 1 . . Fabricators . | . . . . . Repair Stations 2 | . 1 1 . . Recycling Units . | . . . . . Scanalyzers . | . . . . . Garrison Access . | . . . . . Total Hacks 17 | . 8 7 2 . Successful 8 | . 2 4 2 . Failed 8 | . 6 2 . . Catastrophic 1 | . 1 . . . Database Lockouts 1 | . . 1 . . Manual 11 | . 5 6 . . Terminals 10 | . 5 5 . . Fabricators . | . . . . . Repair Stations 5 | . 3 2 . . Recycling Units . | . . . . . Scanalyzers . | . . . . . Garrison Access . | . . . . . Terminal Hacks 4 | . 1 1 2 . Robot Analysis 2 | . 1 1 . . Open Door 2 | . . . 2 . Fabricator Hacks . | . . . . . Repair Station Hacks 3 | . 1 2 . . Scan Component 2 | . 1 1 . . Repair 1 | . . 1 . . Recycling Unit Hacks . | . . . . . Scanalyzer . | . . . . . Garrison Access Hacks . | . . . . . Unauthorized Hacks 1 | . . 1 . . Terminals 1 | . . 1 . . Botnet 1 | . . 1 . . Fabricators . | . . . . . Repair Stations . | . . . . . Recycling Units . | . . . . . Scanalyzers . | . . . . . Garrison Access . | . . . . . Data Cores Recovered . | . . . . . Used . | . . . . . Hacking Detections 4 | . 3 1 . . Full Trace Events 2 | . 1 1 . . Feedback Events . | . . . . . Feedback Blocked . | . . . . . Robot Schematics Acquired . | . . . . . Robots Built . | . . . . . Authchips . | . . . . . Time . | . . . . . Total Robot Build Rating . | . . . . . Part Schematics Acquired . | . . . . . Parts Built . | . . . . . Authchips . | . . . . . Time . | . . . . . Total Part Build Rating . | . . . . . Parts Repaired 1 | . . 1 . . Time 32 | . . 32 . . Parts Recycled . | . . . . . Recycled Matter . | . . . . . Retrieved Matter . | . . . . . Retrieved Components . | . . . . . Parts Scanalyzed . | . . . . . Part Schematics Acquired . | . . . . . Parts Damaged . | . . . . . Bothacking | -11 -10 -9 -9 -8 ------------ Run | Yrd Mat Mat Min Mat Used RIF Installer . | . . . . . Robots Hacked . | . . . . . Non-combat . | . . . . . Combat . | . . . . . Robot Hacks Applied . | . . . . . Relay Couplers Released . | . . . . . Fabnet Peak Effective % . | . . . . . Robots Rewired . | . . . . . Allies Hacked . | . . . . . Hacks Repelled . | . . . . . Allies | -11 -10 -9 -9 -8 -------- Run | Yrd Mat Mat Min Mat Total Allies 1 | . . . 1 . Largest Group 1 | . . . 1 . Highest-Rated Group 31 | . . . 31 . Highest-Rated Ally 31 | . . . 31 . Total Orders . | . . . . . Ally Attacks 10 | . . . 10 . Total Damage 85 | . . . 85 . Kills 2 | . . . 2 . Allies Corrupted . | . . . . . Allies Melted . | . . . . . Intel | -11 -10 -9 -9 -8 ------- Run | Yrd Mat Mat Min Mat Robot Analysis Total 2 | . 1 1 . . Derelict Logs Recovered 1 | . . . 1 . Drone Launches . | . . . . . Drone Recoveries . | . . . . . Exploration | -11 -10 -9 -9 -8 ------------- Run | Yrd Mat Mat Min Mat Turns Passed 2502 | 20 438 677 1367 . Spaces Moved 1766 | 21 328 397 1020 . Core 4 | 4 . . . . Treads . | . . . . . Legs . | . . . . . Wheels 1762 | 17 328 397 1020 . Hover . | . . . . . Flight . | . . . . . Fastest Speed 50 | 50 80 95 105 . Average Speed 101 | 74 93 102 105 . Slowest Speed 110 | 80 95 110 105 . Overloaded Moves . | . . . . . Propulsion Burnouts . | . . . . . Robots Hopped . | . . . . . Cave-ins Triggered . | . . . . . Exploration Rate (%) 36 | 3 47 32 99 1 Regions Visited 4 Branch Regions 1 Pre-discovered Areas 1 | . . . 1 . Known Exits Taken . | . . . . . Unknown Exits Taken 4 | 1 1 1 1 . Scrap Searched 2 | . . . 2 . Spaces Dug . | . . . . . Terrain Destroyed . | . . . . . Melee . | . . . . . Projectile . | . . . . . AOE . | . . . . . Terrain Rammed . | . . . . . Walls Destroyed . | . . . . . Machines Disabled . | . . . . . Actions | -11 -10 -9 -9 -8 --------- Run | Yrd Mat Mat Min Mat Total 2282 | 23 395 578 1286 . Wait 369 | . 18 108 243 . Move 1762 | 20 327 396 1019 . Hop . | . . . . . Pick Up 26 | . 12 11 3 . Fast Attach 13 | 3 4 5 1 . Attach 8 | . 1 6 1 . Detach 1 | . . . 1 . Swap 5 | . . 4 1 . Drop 10 | . 1 6 3 . Fire 88 | . 32 42 14 . Melee . | . . . . . Ram . | . . . . . Kick . | . . . . . Crush . | . . . . . Escape Stasis . | . . . . . Rewire . | . . . . . Trap . | . . . . . Miscellaneous . | . . . . . Route ------- -11/Scrapyard -10/Materials (discovered 2 exits: *Mat / [*Min]) -9/Materials -9/Mines (discovered 3 exits: [*Mat x2] / [*Exi]) -8/Materials History --------- Turn | Location | Event 8 | -11/Scrapyard | Discovered new exit (range 15) 21 | -11/Scrapyard | Entered Materials 171 | -10/Materials | Discovered new exit (range 10) 317 | -10/Materials | Build established: Mutant 448 | -10/Materials | Discovered new exit (range 13) 459 | -10/Materials | Entered another Materials area 459 | -9/Materials | Evolved 2 slots: Utility x1, Weapon x1 462 | -9/Materials | Central database locked down 1015 | -9/Materials | Discovered new exit (range 7) 1067 | -9/Materials | Repaired Arm. Wheel 1136 | -9/Materials | Entered Mines 1139 | -9/Mines | Received a Mining Laser from a helpful Derelict 1202 | -9/Mines | Build established: Gunner 1344 | -9/Mines | Deemed a non-threat by the Exiles lab entrance 1345 | -9/Mines | Discovered new exit (range 5) 1377 | -9/Mines | Discovered new exit (range 10) 1382 | -9/Mines | Discovered new exit (range 7) 1571 | -9/Mines | Met a Derelict shopkeep closing up shop 1615 | -9/Mines | Met a Derelict who couldn't figure out how to use a Trap Extractor 2300 | -9/Mines | Learned location of Storage (-9) 2503 | -9/Mines | Entered Materials 2503 | -8/Materials | Evolved 2 slots: Propulsion x1, Utility x1 2503 | -8/Materials | Self-destructed Last Messages --------------- 01944_ T-07 Excavator is excavating. 02264_ K-01 Serf collects debris. 02300_ Acquired derelict log, extracted data. World map updated: -9/Storage. 02353_ Acquired Flak Gun. 02354_ Dropped Mace. 02356_ Acquired Spear. 02360_ Dropped Shotgun. 02361_ Acquired Hvy. Missile Launcher. 02399_ Acquired 10 matter. 02443_ Searching scrap... 02443_ Found Particle Gun. 02443_ Found Mni. Grenade Launcher. 02443_ Found 37 Matter. 02483_ Searching scrap... 02483_ Found Shield Generator. 02483_ Found 26 Matter. PARAMETERS=PROPULSION+1,UTILITY+1 LOCATION=UNKNOWN GOAL=ESCAPE Map ----- +----------------------------------------------------+ | ???????????????????????????????????? | | ???????????????????????????????????? | | ???????????????????????????????????? | | ???????????????????????????????????? | | ???????????????????????????????????? | | ???????????????????????????????????? | | ???????????????????????????????????? | | ???????????????????????????????????? | | ???????????????????????????????????? | | ???????????????????????????????????? | | ???????????????????????????????????? | | ???????????????????????????????????? | | ???????????????????????????????????? | | ???????????????????????????????????? | | ???????????????????????????????????? | | ???????????????????????????????????? | | ???????????????????????????????????? | | ???????????????????????????????????? | | ???????????????????????????????????? | | ???????????????????????????????????? | | ???????????????????????????????????? | | ???????????????????????????????????? | | ???????????????????????????????????? | | ?????????????########+######???????? | | ?????????? #???????? | | ?????????? g@g#???????? | | ?????????? #???????? | | ?????????????###+###########???????? | | ???????????????????????????????????? | | ???????????????????????????????????? | | ???????????????????????????????????? | | ???????????????????????????????????? | | ???????????????????????????????????? | | ???????????????????????????????????? | | ???????????????????????????????????? | | ???????????????????????????????????? | | ???????????????????????????????????? | | ???????????????????????????????????? | | ???????????????????????????????????? | | ???????????????????????????????????? | | ???????????????????????????????????? | | ???????????????????????????????????? | | ???????????????????????????????????? | | ???????????????????????????????????? | | ???????????????????????????????????? | | ???????????????????????????????????? | | ???????????????????????????????????? | | ???????????????????????????????????? | | ???????????????????????????????????? | | ???????????????????????????????????? | +----------------------------------------------------+ Best States ------------- Heat Dissipation 28 Energy Generation 10 Energy Capacity 250 Matter Stores 300 Matter Capacity 300 Sight Range 16 Terrain Scan Density 10 Armor Coverage 225 Evasion (%) 44 Targeting Accuracy 10 Item Schematics ----------------- None Robot Schematics ------------------ None Fabricated ------------ Nothing Alien Tech Used ----------------- None Achievements -------------- None Challenges ------------ None Game ------ Seed gottagofast Manual? 1 Play Time 00:22:54 Cumulative 156.7 hours Start 2024.06.02 @ 21:19:44 End 2024.06.02 @ 22:30:09 Sessions 1 Manual Loads 0 Difficulty Rogue Special Mode None Game No. 154 Rogue 154 Adventurer 0 Explorer 0 Win Type - Total 9 Types 8/0/0/1/0/0/0/0/0 Lore% 67 Gallery% 78 Achievement% 64 Wizard Run 0 Options --------- Layout 1 ASCII 0 Keyboard 0 Movement Numpad Keybinds 0 Fullscreen 1 Font 24/Smallcaps Map View 50x35 Zoom Use 0% Tactical HUD 1 Map Filters NONE Filters NONE Steam 1 RUN: 282d2832-3e2d-4e39-ba1e-f593c1ec7904